[Event "ChessKid Cup Div-III 2023"]
[Site "Online"]
[Date "2023.05.23"]
[Round "3.2"]
[White "Lazavik, Denis"]
[Black "Vallejo Pons, Francisco"]
[Result "1-0"]
[ECO "E11"]
[WhiteElo "2544"]
[BlackElo "2712"]
[Annotator "TA"]
[PlyCount "95"]
[EventDate "2023.05.21"]
[EventType "k.o."]
[EventCountry "NET"]
[SourceTitle "playchess.com"]
[Source "ChessBase"]
[SourceQuality "1"]
[TimeControl "900+3"]

{[%evp 13,95,10,16,17,16,16,29,21,34,29,36,14,22,8,16,16,13,13,9,1,24,30,37,34,41,43,70,50,78,79,69,64,120,105,115,90,92,85,94,97,78,86,133,123,193,197,256,229,249,252,326,324,431,431,426,415,392,349,473,473,868,809,2037,1349,5106,391,1481,1464,595,595,626,673,660,626,1800,672,1093,1043,29973,29974,29996,29997,29997,29998]} 1. d4 {[%emt 0:00:04]} e6 {[%emt 0:00:07]} 2. c4 {[%emt 0:00:01]} Bb4+ {[%emt 0:00:03]} 3. Bd2 {[%emt 0:00:08]} Bxd2+ {[%emt 0:00:03]} 4. Qxd2 {[%emt 0:00:03]} Nf6 {[%emt 0:00:02]} 5. Nf3 {[%emt 0:00:28]} O-O {[%emt 0:00:12]} 6. Nc3 {[%emt 0:00:09]} d5 {[%emt 0:00:02]} 7. e3 {[%emt 0:00:02]} b6 {[%emt 0:00:02]} 8. Rc1 {[%emt 0:00:51] E11: Bogo-Indian.} Bb7 {[%emt 0:00:07]} 9. cxd5 {[%emt 0:00:02]} Nxd5 {[%emt 0:00:25]} 10. Bd3 {[%emt 0:00:49] White has an edge.} Nf6 {[%emt 0:02:12]} 11. O-O {[%emt 0:00:10]} c5 {[%emt 0:00:20] [#]} 12. dxc5 $146 {[%emt 0:00:10]} ({Predecessor:} 12. Rfd1 Nbd7 13. e4 Qe7 14. Qf4 {1-0 Duttagupta,A (2124)-Hendricks,R (2006) FICGS W-ch st1 g05 email 2020 (1)}) 12... Nbd7 {[%emt 0:00:11]} 13. Rfd1 {[%emt 0:01:43]} Nxc5 {[%emt 0:00:16]} 14. Be2 {[%emt 0:00:03]} Qxd2 {[%emt 0:00:32]} 15. Nxd2 {[%emt 0:00:15]} Rfd8 {[%emt 0:00:22]} 16. f3 {[%emt 0:00:42]} Nd5 {[%emt 0:01:31]} (16... Nd3 $5 17. Rb1 Rd7 $11) 17. Nxd5 {[%emt 0:00:21]} Bxd5 {[%emt 0:00:45]} 18. b4 {[%emt 0:02:35]} Na4 {[%emt 0:01:04][%cal Oa8c8]} 19. Rc2 {[%emt 0:00:11] [#] And now Bb5 would win.} a6 {[%emt 0:04:23] Against Bb5} 20. Rdc1 {[%emt 0:00:43]} b5 {[%emt 0:00:51]} 21. e4 {[%emt 0:00:06]} Bb7 {[%emt 0:00:37]} 22. Nb3 {[%emt 0:00:04][%cal Bd2b3,Bb3a5,Ba5c6][%mdl 32]} Rd7 {[%emt 0:00:49]} (22... Bc8 $14) 23. Rc7 $36 {[%emt 0:00:56][%mdl 2048] White is on the roll.} Rad8 {[%emt 0:00:21]} 24. Na5 {[%emt 0:00:03]} Rxc7 {[%emt 0:00:10]} 25. Rxc7 {[%emt 0:00:02]} Ba8 {[%emt 0:00:03]} 26. Kf2 {[%emt 0:00:13]} f5 {[%emt 0:00:17]} 27. Ke3 {[%emt 0:00:36]} g5 {[%emt 0:00:12]} ({Black should try} 27... Nb6) 28. g3 {[%emt 0:00:22] White is more active.} g4 {[%emt 0:00:15] [#]} 29. Nc6 $1 $18 {[%emt 0:01:03]} (29. fxg4 $6 Bxe4 30. Nc6 Rd6 31. Ne7+ Kf8 $16) 29... Re8 {[%emt 0:00:01]} (29... Bxc6 {is a better defense.} 30. Rxc6 gxf3) 30. fxg4 {[%emt 0:00:10]} fxe4 {[%emt 0:00:11] ...Nb6 is the strong threat.} 31. Bd1 {[%emt 0:00:38]} (31. Kxe4 Nc3+ 32. Ke5 Nxe2 $17) 31... Nc3 {[%emt 0:00:04]} 32. Bb3 {[%emt 0:00:01]} Nd5+ {[%emt 0:00:04]} 33. Bxd5 $1 {[%emt 0:00:01]} (33. Kxe4 $2 {perishes.} Nxc7 34. Ke5 Bxc6 $19) 33... exd5 {[%emt 0:00:00][%mdl 4096] Endgame KRB-KRN} 34. Nd4 {[%emt 0:00:27]} Rb8 {[%emt 0:00:05]} 35. Nf5 {[%emt 0:00:05]} Bb7 {[%emt 0:00:04]} 36. Kd4 {[%emt 0:00:04]} Ba8 {[%emt 0:00:04]} (36... Kh8 $142 37. Nd6 Ba8) 37. h4 {[%emt 0:00:07][%cal Bh2h4,Bh4h5,Bh5g6,Bg6g7][%mdl 32]} Kh8 {[%emt 0:00:03]} 38. h5 {[%emt 0:00:10] Hoping for g5.} Re8 {[%emt 0:00:03]} 39. Ke3 $2 {[%emt 0:00:12]} (39. g5 {White wants to mate with g6.} Rg8 40. Nh6 Rxg5 41. Nf7+ Kg7 42. Nxg5+ {[%mdl 64] Discovered Attack} Kh6 43. Nxh7) 39... Rd8 $2 {[%emt 0:00:01]} (39... d4+ 40. Kxd4 e3 41. Nxe3 Bf3) 40. g5 {[%emt 0:00:18] Strongly threatening g6.} d4+ {[%emt 0:00:01]} 41. Nxd4 {[%emt 0:00:01]} Bd5 {[%emt 0:00:01]} 42. g6 {[%emt 0:00:29]} hxg6 {[%emt 0:00:00]} 43. hxg6 {[%emt 0:00:00]} Bxa2 {[%emt 0:00:06]} 44. Rh7+ {[%emt 0:00:18]} (44. Kxe4 Bb1+ 45. Ke5 (45. Nc2 $2 Rd2 $19) 45... Bxg6 $16) 44... Kg8 {[%emt 0:00:01]} 45. Nf5 {[%emt 0:00:00] Inhibits Rd6. Black must now prevent Nh6+.} ({Weaker is} 45. Kxe4 Rd6 $14) 45... Rd3+ {[%emt 0:00:07]} 46. Kxe4 {[%emt 0:00:04] White mates.} Bb1 {[%emt 0:00:04]} 47. Nh6+ {[%emt 0:00:05]} Kf8 {[%emt 0:00:01]} 48. g7+ {[%emt 0:00:00] Weighted Error Value: White=0.35/Black=0.45} 1-0

[Event "ChessKid Cup Div-III 2023"]
[Site "Online"]
[Date "2023.05.23"]
[Round "3.3"]
[White "Lysyj, Igor"]
[Black "Harikrishna, Pentala"]
[Result "1/2-1/2"]
[ECO "D42"]
[WhiteElo "2606"]
[BlackElo "2704"]
[Annotator "TA"]
[PlyCount "92"]
[EventDate "2023.05.21"]
[EventType "k.o."]
[EventCountry "NET"]
[SourceTitle "playchess.com"]
[Source "ChessBase"]
[SourceQuality "1"]
[TimeControl "900+3"]

{[%evp 22,92,25,14,25,19,20,28,27,20,43,27,19,22,41,36,73,0,0,0,0,0,8,0,0,0,0,0,11,0,57,57,57,57,58,63,67,68,67,76,79,75,93,101,111,40,42,8,8,8,7,-5,-6,-8,-8,-63,-63,-64,-63,-63,-63,-63,-61,-82,-80,-68,-18,-244,-244,-292,-289,-245,-193]} 1. d4 {[%emt 0:00:07]} Nf6 {[%emt 0:04:10]} 2. c4 {[%emt 0:00:05]} e6 {[%emt 0:00:04]} 3. Nc3 {[%emt 0:00:05]} Bb4 {[%emt 0:00:04]} 4. e3 {[%emt 0:00:04]} c5 {[%emt 0:00:06]} 5. Bd3 {[%emt 0:00:06]} d5 {[%emt 0:00:05]} 6. cxd5 {[%emt 0:00:09]} Nxd5 {[%emt 0:00:09]} 7. Bd2 {[%emt 0:00:05]} cxd4 {[%emt 0:00:13]} 8. exd4 {[%emt 0:00:06]} Nc6 {[%emt 0:00:04]} 9. Nf3 {[%emt 0:00:05]} Nf6 {[%emt 0:00:13]} 10. O-O {[%emt 0:00:08]} O-O {[%emt 0:00:04]} 11. Bg5 {[%emt 0:00:34]} Be7 {[%emt 0:00:05]} 12. Re1 {[%emt 0:00:07]} h6 {[%emt 0:00:07] D42: Queen's Gambit Declined: Semi-Tarrasch: 5 cxd5 Nxd5 6 e3 Nc6 7 Bd3 .} (12... Nd5 $5 {[%cal Re7g5]} 13. Bxe7 Ncxe7 $14) 13. Bf4 {[%emt 0:00:08]} b6 {[%emt 0:00:35]} 14. Qd2 {[%emt 0:00:10][%cal Of4h6]} Re8 $1 {[%emt 0:00:48] White has an edge.} 15. Rad1 {[%emt 0:00:18][%cal Of4h6]} Bb7 {[%emt 0:00:14]} 16. Bb1 {[%emt 0:00:06]} (16. Ne5 {is interesting.} a6 17. Qe3 Bf8 18. Qh3) 16... Bf8 {[%emt 0:00:10]} 17. a3 {[%emt 0:00:15] [#]} Rc8 $146 {[%emt 0:00:07]} ({Predecessor:} 17... Ne7 18. Nh4 Ned5 19. Be5 g6 20. Nxd5 Bxd5 21. Qf4 Nh5 22. Qg4 Qg5 23. h3 Rec8 {½-½ Gilevich,A (2407)-Sonis,F (2550) ITA-ch 80th Chianciano Terme 2021 (2)}) 18. Qd3 {[%emt 0:00:11]} Bd6 {[%emt 0:00:49]} 19. Bxd6 {[%emt 0:00:58]} (19. Ne5 $16) 19... Qxd6 $11 {[%emt 0:00:05]} 20. Ne4 {[%emt 0:00:04]} Nxe4 {[%emt 0:00:10]} 21. Qxe4 {[%emt 0:00:05] [#] Strongly threatening Qh7+.} f5 {[%emt 0:00:26]} 22. Qh4 {[%emt 0:00:40][%cal Od4d5]} Ne7 {[%emt 0:01:00]} 23. Ne5 {[%emt 0:00:07]} Nd5 {[%emt 0:00:06]} 24. Bd3 {[%emt 0:00:28]} Qe7 {[%emt 0:00:04]} 25. Qg3 {[%emt 0:00:12]} Qg5 {[%emt 0:00:04]} (25... g5 $11) 26. Bb5 $14 {[%emt 0:00:18]} Re7 {[%emt 0:00:21]} 27. Ng6 $1 {[%emt 0:02:52] Black must now prevent Qxg5.} Rec7 {[%emt 0:00:04]} 28. Rxe6 {[%emt 0:00:33]} Rc1 {[%emt 0:01:24]} 29. Ree1 {[%emt 0:01:20] White is more active.} Rxd1 {[%emt 0:00:06]} 30. Rxd1 {[%emt 0:00:05]} Qxg3 {[%emt 0:00:17]} 31. hxg3 {[%emt 0:00:12] Threatens to win with Bd7.} Rc2 {[%emt 0:00:07]} 32. Re1 {[%emt 0:00:13] Bd7 would be deadly.} Kf7 {[%emt 0:00:36]} 33. Ne5+ {[%emt 0:00:48]} ({White should play} 33. Be8+ $16 Kf6 34. Nf8) 33... Kf6 {[%emt 0:00:11]} 34. Re2 {[%emt 0:00:05]} Rxe2 {[%emt 0:00:25]} 35. Bxe2 $11 {[%emt 0:00:05][%mdl 4096] Endgame KBN-KBN} Nc7 $1 {[%emt 0:00:04]} 36. Bc4 {[%emt 0:00:35]} Ne6 $1 {[%emt 0:00:10]} 37. Bxe6 {[%emt 0:00:33]} Kxe6 {[%emt 0:00:04] KB-KN} 38. Nc4 {[%emt 0:00:04]} ({Better is} 38. Ng6 $1 $11) 38... Kd5 $1 $15 {[%emt 0:00:12][%csl LRc4,LRd4]} 39. Ne3+ {[%emt 0:00:04]} Ke4 $1 {[%emt 0:00:04]} 40. Kf1 {[%emt 0:00:24]} g6 {[%emt 0:00:04]} 41. Ke2 {[%emt 0:00:26]} Kxd4 {[%emt 0:00:04]} 42. f3 {[%emt 0:00:04]} Ba6+ {[%emt 0:00:09]} 43. Kd2 {[%emt 0:00:04]} Bd3 {[%emt 0:00:06]} (43... Ke5 $15) 44. f4 $2 {[%emt 0:00:09]} (44. Nd5 $11 {and White is okay.}) 44... Be4 $19 {[%emt 0:00:05]} 45. Ke2 {[%emt 0:00:05] [#]} h5 {[%emt 0:00:05]} 46. Kd2 {[%emt 0:00:05]} a5 {[%emt 0:00:06] Weighted Error Value: White=0.22 (precise) /Black=0.07 (flawless)} 1/2-1/2

[Event "ChessKid Cup Div-III 2023"]
[Site "Online"]
[Date "2023.05.23"]
[Round "4.1"]
[White "Harikrishna, Pentala"]
[Black "Lazavik, Denis"]
[Result "1-0"]
[ECO "E06"]
[WhiteElo "2704"]
[BlackElo "2544"]
[Annotator "TA"]
[PlyCount "119"]
[EventDate "2023.05.21"]
[EventType "k.o."]
[EventCountry "NET"]
[SourceTitle "playchess.com"]
[Source "ChessBase"]
[SourceQuality "1"]
[TimeControl "900+3"]

{[%evp 15,119,10,7,7,26,12,14,4,10,0,20,12,9,12,24,20,21,19,33,41,40,24,22,20,19,19,23,5,19,13,26,21,24,9,11,8,11,11,10,8,17,17,17,16,34,31,31,32,43,28,30,18,20,18,150,14,14,14,14,14,14,14,21,14,14,14,14,14,14,14,14,14,14,14,210,68,77,25,68,68,68,68,68,91,76,70,150,70,1600,1495,1668,1426,8588,6447,29975,29973,29979,29980,29979,29980,29982,29983,29983,29984,29988,29989]} 1. c4 {[%emt 0:00:04]} Nf6 {[%emt 0:00:07]} 2. Nf3 {[%emt 0:00:01]} e6 {[%emt 0:00:01]} 3. g3 {[%emt 0:00:01]} d5 {[%emt 0:00:01]} 4. Bg2 {[%emt 0:00:00]} Be7 {[%emt 0:00:01]} 5. d4 {[%emt 0:00:02]} O-O {[%emt 0:00:01]} 6. Nc3 {[%emt 0:00:02]} dxc4 {[%emt 0:00:01]} 7. Ne5 {[%emt 0:00:00]} c5 {[%emt 0:00:01]} 8. dxc5 {[%emt 0:00:01]} Qxd1+ {[%emt 0:00:01]} 9. Nxd1 {[%emt 0:00:01] E06: Closed Catalan: Early deviations.} Bxc5 {[%emt 0:00:02]} 10. Bd2 {[%emt 0:00:01]} Nc6 {[%emt 0:00:21]} 11. Nxc4 {[%emt 0:00:14] The position is equal.} Bd7 {[%emt 0:00:38]} 12. O-O $5 {[%emt 0:00:29][%mdl 4] A promising side line.} Rfd8 {[%emt 0:00:50]} 13. Nc3 {[%emt 0:00:12] [#]} Be8 $146 {[%emt 0:00:31]} ({Predecessor:} 13... e5 14. b3 Be6 15. Bg5 h6 16. Bxf6 gxf6 17. Rac1 Kg7 18. Bxc6 bxc6 19. Na4 Bb4 {½-½ Jerkovic,L (2132)-Mueller,D (2379) W-ch WS/M/571 email 2016}) 14. Rfd1 {[%emt 0:00:18]} Rd4 {[%emt 0:03:27]} 15. Bxc6 {[%emt 0:02:17]} Bxc6 {[%emt 0:01:03]} ({Don't do} 15... Rxc4 16. Bxb7 Rb8 17. Ba6 $16) 16. Na5 {[%emt 0:00:03]} Rad8 {[%emt 0:05:42]} 17. Nxc6 {[%emt 0:00:25]} bxc6 {[%emt 0:00:02]} 18. Be3 {[%emt 0:00:01]} Rxd1+ {[%emt 0:00:01]} 19. Rxd1 {[%emt 0:00:01]} Rxd1+ {[%emt 0:00:03]} 20. Nxd1 $11 {[%emt 0:00:01][%mdl 4096] Endgame KBN-KBN} Bb6 {[%emt 0:00:07]} 21. Kf1 {[%emt 0:00:48]} Kf8 {[%emt 0:00:04]} 22. f3 {[%emt 0:00:04]} Ke7 {[%emt 0:00:09]} 23. Bg5 {[%emt 0:00:01]} h6 {[%emt 0:00:03]} 24. Bxf6+ {[%emt 0:00:05]} Kxf6 {[%emt 0:00:00] KB-KN} 25. e3 {[%emt 0:00:01]} Ke5 {[%emt 0:00:10]} 26. Ke2 {[%emt 0:00:03]} f5 {[%emt 0:00:02]} 27. b3 {[%emt 0:00:09]} Bd8 {[%emt 0:00:20]} 28. Kd3 {[%emt 0:00:09]} Kd6 {[%emt 0:00:05]} 29. Nb2 {[%emt 0:00:46]} Bf6 {[%emt 0:00:13]} 30. Nc4+ {[%emt 0:00:05]} Kd7 {[%emt 0:00:10]} 31. e4 {[%emt 0:00:05]} g6 {[%emt 0:00:14]} 32. b4 {[%emt 0:00:57]} Kc7 {[%emt 0:00:07]} 33. Na5 {[%emt 0:00:09]} Be7 {[%emt 0:00:04]} 34. Kc4 {[%emt 0:00:02]} h5 {[%emt 0:00:33]} (34... Bf6 $11) 35. h3 {[%emt 0:01:02]} (35. e5 $1 $16) 35... Bd6 {[%emt 0:00:07]} 36. g4 {[%emt 0:00:08]} hxg4 {[%emt 0:00:03]} 37. hxg4 {[%emt 0:00:04]} fxg4 {[%emt 0:00:03]} 38. fxg4 {[%emt 0:00:01]} Kd7 {[%emt 0:00:05]} 39. a3 {[%emt 0:00:11]} Bc7 {[%emt 0:00:10]} 40. Nb7 {[%emt 0:00:25]} Ke7 {[%emt 0:00:18]} 41. Kc5 {[%emt 0:00:26]} Kd7 {[%emt 0:00:01]} 42. Kd4 {[%emt 0:00:28]} Ke7 {[%emt 0:00:06]} 43. e5 {[%emt 0:00:11]} Bb6+ {[%emt 0:00:03]} 44. Ke4 {[%emt 0:00:12]} Bc7 $2 {[%emt 0:00:10]} (44... g5 $1 $11 {and Black has nothing to worry.}) 45. Nc5 {[%emt 0:00:04]} ({Only move:} 45. a4 $1 $18) 45... Bb6 {[%emt 0:00:07]} 46. Nb3 {[%emt 0:00:27]} (46. Na6 $1 $16) 46... Bc7 {[%emt 0:00:15]} 47. Nd2 {[%emt 0:00:26]} Kd7 {[%emt 0:00:02]} 48. Kf4 {[%emt 0:00:17]} Bd8 $1 {[%emt 0:00:02]} 49. Ne4 {[%emt 0:00:11]} Ke8 {[%emt 0:00:05]} 50. Nc5 {[%emt 0:00:27]} Kf7 {[%emt 0:00:03] [#]} ({Black should play} 50... g5+ $1 $14 51. Ke4 Ke7) 51. Nb7 {[%emt 0:00:13]} ({White should try} 51. Na6 $1 $16 {[%cal Ra6b8]}) 51... Bc7 {[%emt 0:00:02][%mdl 8192]} (51... g5+ $14 52. Ke4 Ke7) 52. Nd6+ $18 {[%emt 0:00:32]} Ke7 {[%emt 0:00:21] [#]} 53. Kg5 $1 {[%emt 0:00:10]} a5 {[%emt 0:00:05]} 54. Kxg6 {[%emt 0:00:29] White wants to mate with g5.} axb4 {[%emt 0:00:01]} 55. axb4 {[%emt 0:00:01] White mates.} Kd7 {[%emt 0:00:06]} 56. Kf6 {[%emt 0:01:33]} Bd8+ {[%emt 0:00:04]} 57. Kf7 {[%emt 0:00:01]} Be7 {[%emt 0:00:02]} 58. Ne4 {[%emt 0:00:06]} Bxb4 {[%emt 0:00:04]} 59. g5 {[%emt 0:00:01]} Bd2 {[%emt 0:00:04]} 60. Nxd2 {[%emt 0:00:02] Weighted Error Value: White=0.15 (very precise) /Black=0.33} 1-0

[Event "ChessKid Cup Div-III 2023"]
[Site "Online"]
[Date "2023.05.23"]
[Round "4.1"]
[White "Pichot, Alan"]
[Black "Bernadskiy, Vitaliy"]
[Result "1-0"]
[ECO "C18"]
[WhiteElo "2638"]
[BlackElo "2592"]
[Annotator "TA"]
[PlyCount "49"]
[EventDate "2023.05.21"]
[EventType "k.o."]
[EventCountry "NET"]
[SourceTitle "playchess.com"]
[Source "ChessBase"]
[SourceQuality "1"]
[TimeControl "900+3"]

{[%evp 11,49,0,17,-18,12,0,7,-7,45,47,48,48,22,44,62,54,53,31,277,113,251,221,272,279,292,297,289,105,481,458,792,840,838,831,803,797,747,720,560,506]} 1. e4 {[%emt 0:00:04]} e6 {[%emt 0:00:06]} 2. d4 {[%emt 0:00:10]} d5 {[%emt 0:00:01]} 3. Nc3 {[%emt 0:00:01]} Bb4 {[%emt 0:00:02]} 4. e5 {[%emt 0:00:03]} c5 {[%emt 0:00:00]} 5. a3 {[%emt 0:00:02]} Bxc3+ {[%emt 0:00:01]} 6. bxc3 {[%emt 0:00:03]} Qc7 {[%emt 0:00:01]} 7. h4 {[%emt 0:00:12] C18: French: 3 Nc3 Bb4: Main line: 7 h4 and 7 Qg4.} (7. Qg4 $5 {[%cal Rg4g7]} Kf8 8. Bd2 $11) 7... Nc6 {[%emt 0:00:04]} 8. h5 {[%emt 0:00:09]} (8. dxc5 Nxe5 9. Bf4 f6 $15) 8... Bd7 {[%emt 0:00:01]} 9. Nf3 {[%emt 0:00:12] The position is equal.} O-O-O {[%emt 0:01:10] [#]} (9... h6 $11) 10. a4 $5 $146 {[%emt 0:00:13][%mdl 8] New and interesting.} ({Much worse is} 10. dxc5 Nxe5 11. Be2 Nxf3+ 12. Bxf3 Qe5+ 13. Kf1 Qxc3 $15) ({Predecessor:} 10. h6 Nxh6 11. Bxh6 gxh6 12. Qd2 Rdg8 13. Rxh6 Rg6 14. Rxg6 hxg6 15. Ng5 cxd4 16. Nxf7 dxc3 17. Qxc3 {0-1 Steinhart,M-Camilleri,H (2133) Bad Woerishofen op 15th 1999 (1)}) 10... f6 {[%emt 0:00:09][%cal Rf6e5]} 11. Bb5 {[%emt 0:00:14]} ({Don't play} 11. dxc5 Nxe5 12. Be3 Ne7 13. Nxe5 fxe5 $15) 11... Nge7 {[%emt 0:01:12][%cal Rf6e5]} 12. Bf4 {[%emt 0:00:36][%cal Bc1f4,Bf4h2,Bh2e5][%mdl 32]} ({Reject} 12. dxc5 Nxe5 13. O-O Nf7 $15) 12... cxd4 {[%emt 0:00:16]} 13. cxd4 {[%emt 0:00:33]} g5 $1 {[%emt 0:00:15]} 14. Bh2 {[%emt 0:00:49]} (14. exf6 $5 {[%cal Rf4c7]} gxf4 15. fxe7 Nxe7 16. Ne5 $14) 14... fxe5 {[%emt 0:00:11] [#]} ({Black should play} 14... Qa5+ $1 $14 15. Qd2 Qxd2+ 16. Kxd2 Rhf8) 15. Nxe5 {[%emt 0:00:08]} (15. O-O $1 $18 {and the rest is easy.}) 15... Nxe5 {[%emt 0:00:04]} (15... Qa5+ $16 16. Qd2 Qxd2+ 17. Kxd2 Rdf8) 16. Bxe5 {[%emt 0:00:06] A strong pair of Bishops.} Qc3+ {[%emt 0:00:01]} 17. Kf1 {[%emt 0:00:00] And now Rh3 would win.} Rhf8 {[%emt 0:00:10][%cal Og5g4]} 18. Rh3 {[%emt 0:00:05] Prevents g4.} Qa5 {[%emt 0:00:18]} (18... Bxb5+ $2 19. axb5 Qc4+ 20. Kg1 $18) 19. Qe1 $2 {[%emt 0:03:07] [#]} (19. Rb3 $18 {and White stays clearly on top.}) 19... Bxb5+ $4 {[%emt 0:01:06][%mdl 8192]} (19... Qxe1+ $16 {is tougher.} 20. Rxe1 Bxb5+ 21. axb5 Kd7) 20. axb5 $18 {[%emt 0:00:02] White is clearly winning.} Qxb5+ {[%emt 0:00:01]} (20... Qxe1+ $142 21. Kxe1 a6 22. bxa6 bxa6 23. Rxa6 Kd7) 21. Kg1 {[%emt 0:00:01]} Nc6 {[%emt 0:00:02]} 22. Rb3 {[%emt 0:00:09]} Qc4 {[%emt 0:00:06]} 23. Rc3 {[%emt 0:00:07]} Qb5 {[%emt 0:00:03]} 24. Rxa7 {[%emt 0:01:02]} Kd7 {[%emt 0:01:47]} 25. Rb3 {[%emt 0:00:11] Weighted Error Value: White=0.40/Black=0.77} 1-0